fUST/lending_fUST_20250727
["ID","MTS","AMOUNT","RATE_DAILY","PERIOD"]
[375214485,1753588239979,-462.13033544,0.00019178,2]
[375214486,1753588239988,-460.0,0.00019178,2]
[375214488,1753588239998,-464.54296776,0.00019178,2]
[375214490,1753588240008,-1456.07,0.00019178,2]
[375214492,1753588240018,-460.0,0.00019178,2]
[375214494,1753588240026,-460.0,0.00019178,2]
[375214496,1753588240036,-2844.33,0.00019178,2]
[375214498,1753588240045,-460.0,0.00019178,2]
[375214500,1753588240056,-460.0,0.00019178,2]
[375214502,1753588240065,-460.0,0.00019178,2]
[375214504,1753588240075,-783.52,0.00019178,2]
[375214506,1753588240084,-640.75,0.00019178,2]
[375214508,1753588240093,-460.0,0.00019178,2]
[375214510,1753588240103,-460.0,0.00019178,2]
[375214512,1753588240112,-500.0,0.00019178,2]
[375214514,1753588240121,-538.87,0.00019178,2]
[375214516,1753588240130,-460.0,0.00019178,2]
[375214518,1753588240140,-460.0,0.00019178,2]
[375214520,1753588240149,-460.0,0.00019178,2]
[375214522,1753588240158,-693.36,0.00019178,2]
[375214524,1753588240168,-460.0,0.00019178,2]
[375214526,1753588240177,-770.33,0.00019178,2]
[375214528,1753588240187,-460.0,0.00019178,2]
[375214530,1753588240196,-1001.08,0.00019178,2]
[375214531,1753588240205,-460.0,0.00019178,2]
[375214533,1753588240214,-460.0,0.00019178,2]
[375214535,1753588240224,-462.79791518,0.00019178,2]
[375214537,1753588240234,-2162.08,0.00019178,2]
[375214539,1753588240243,-679.04,0.00019178,2]
[375214541,1753588240253,-460.0,0.00019178,2]
[375214543,1753588240262,-460.0,0.00019178,2]
[375214545,1753588240272,-906.32,0.00019178,2]
[375214547,1753588240282,-460.0,0.00019178,2]
[375214549,1753588240291,-568.78,0.00019178,2]
[375214551,1753588240300,-460.0,0.00019178,2]
[375214553,1753588240310,-460.0,0.00019178,2]
[375214555,1753588240319,-460.0,0.00019178,2]
[375214557,1753588240328,-460.0,0.00019178,2]
[375214559,1753588240338,-460.0,0.00019178,2]
[375214561,1753588240347,-460.0,0.00019178,2]
[375214563,1753588240357,-460.0,0.00019178,2]
[375214565,1753588240367,-460.0,0.00019178,2]
[375214567,1753588240376,-460.0,0.00019178,2]
[375214569,1753588240386,-460.0,0.00019178,2]
[375214571,1753588240395,-460.0,0.00019178,2]
[375214573,1753588240404,-460.0,0.00019178,2]
[375214575,1753588240414,-603.96312297,0.00019178,2]
[375214577,1753588240424,-460.0,0.00019178,2]
[375214579,1753588240433,-460.0,0.00019178,2]
[375214581,1753588240443,-648.64,0.00019178,2]
[375214583,1753588240452,-460.0,0.00019178,2]
[375214585,1753588240462,-460.0,0.00019178,2]
[375214587,1753588240471,-460.0,0.00019178,2]
[375214589,1753588240480,-1183.66,0.00019178,2]
[375214591,1753588240490,-460.0,0.00019178,2]
[375214593,1753588240499,-460.0,0.00019178,2]
[375214595,1753588240509,-460.0,0.00019178,2]
[375214597,1753588240518,-460.0,0.00019178,2]
[375214599,1753588240528,-460.0,0.00019178,2]
[375214601,1753588240536,-460.0,0.00019178,2]
[375214604,1753588240548,-460.0,0.00019178,2]
[375214606,1753588240558,-460.0,0.00019178,2]
[375214607,1753588240567,-460.0,0.00019178,2]
[375214609,1753588240577,-460.0,0.00019178,2]
[375214611,1753588240587,-4830.13,0.00019178,2]
[375214613,1753588240597,-460.0,0.00019178,2]
[375214615,1753588240606,-460.0,0.00019178,2]
[375214617,1753588240616,-460.0,0.00019178,2]
[375214619,1753588240625,-460.0,0.00019178,2]
[375214621,1753588240635,-461.61028934,0.00019178,2]
[375214623,1753588240648,-460.0,0.00019178,2]
[375214626,1753588240658,-460.0,0.00019178,2]
[375214628,1753588240668,-460.0,0.00019178,2]
[375214630,1753588240680,-460.0,0.00019178,2]
[375214631,1753588240691,-967.02,0.00019178,2]
[375214633,1753588240701,-460.0,0.00019178,2]
[375214635,1753588240710,-460.0,0.00019178,2]
[375214637,1753588240719,-723.97,0.00019178,2]
[375214639,1753588240728,-487.2,0.00019178,2]
[375214641,1753588240737,-460.0,0.00019178,2]
[375214643,1753588240747,-460.0,0.00019178,2]
[375214645,1753588240757,-460.0,0.00019178,2]
[375214647,1753588240766,-460.0,0.00019178,2]
[375214649,1753588240775,-4375.62,0.00019178,2]
[375214651,1753588240785,-460.0,0.00019178,2]
[375214653,1753588240794,-460.0,0.00019178,2]
[375214655,1753588240803,-460.0,0.00019178,2]
[375214657,1753588240812,-460.0,0.00019178,2]
[375214659,1753588240822,-460.0,0.00019178,2]
[375214662,1753588240833,-460.0,0.00019178,2]
[375214664,1753588240842,-460.0,0.00019178,2]
[375214666,1753588240851,-460.0,0.00019178,2]
[375214668,1753588240860,-460.0,0.00019178,2]
[375214670,1753588240869,-460.0,0.00019178,2]
[375214671,1753588240880,-460.0,0.00019178,2]
[375214673,1753588240891,-460.0,0.00019178,2]
[375214676,1753588240900,-660.74,0.00019178,2]
[375214677,1753588240910,-460.0,0.00019178,2]
[375214680,1753588240919,-841.42,0.00019178,2]
[375214681,1753588240930,-242.47565828,0.00019178,2]
[375214683,1753588240940,-460.0,0.00019178,2]
[375214685,1753588240950,-460.0,0.00019178,2]
[375214687,1753588240961,-1268.11,0.00019178,2]
[375214690,1753588240972,-460.0,0.00019178,2]
[375214691,1753588240981,-759.47,0.00019178,2]
[375214694,1753588240992,-460.0,0.00019178,2]
[375214696,1753588241002,-687.3,0.00019178,2]
[375214698,1753588241011,-510.4,0.00019178,2]
[375214700,1753588241020,-460.0,0.00019178,2]
[375214702,1753588241029,-462.24,0.00019178,2]
[375214704,1753588241040,-460.0,0.00019178,2]
[375214706,1753588241049,-460.0,0.00019178,2]
[375214708,1753588241059,-463.62093836,0.00019178,2]
[375214710,1753588241069,-726.48,0.00019178,2]
[375214711,1753588241080,-460.0,0.00019178,2]
[375214714,1753588241090,-722.49,0.00019178,2]
[375214715,1753588241099,-460.0,0.00019178,2]
[375214718,1753588241109,-460.0,0.00019178,2]
[375214719,1753588241118,-460.0,0.00019178,2]
[375214722,1753588241127,-589.28,0.00019178,2]
[375214723,1753588241136,-572.71,0.00019178,2]
[375214725,1753588241145,-227.86385619,0.00019178,2]
[375214727,1753588241155,-460.0,0.00019178,2]
[375214730,1753588241164,-460.0,0.00019178,2]
[375214732,1753588241173,-460.0,0.00019178,2]
[375214734,1753588241183,-460.0,0.00019178,2]
[375214736,1753588241194,-460.0,0.00019178,2]
[375214738,1753588241204,-1471.74,0.00019178,2]
[375214740,1753588241213,-460.0,0.00019178,2]
[375214741,1753588241222,-1454.12,0.00019178,2]
[375214743,1753588241231,-707.06,0.00019178,2]
[375214745,1753588241241,-460.0,0.00019178,2]
[375214747,1753588241250,-460.0,0.00019178,2]
[375214749,1753588241260,-460.0,0.00019178,2]
[375214752,1753588241269,-460.0,0.00019178,2]
[375214754,1753588241279,-460.0,0.00019178,2]
[375214756,1753588241289,-460.0,0.00019178,2]
[375214758,1753588241302,-460.0,0.00019178,2]
[375214760,1753588241311,-460.0,0.00019178,2]
[375214762,1753588241320,-195.821278,0.00019178,2]
[375214764,1753588241330,-1640.70264357,0.00019352,2]
[375214765,1753588241339,-1362.19371632,0.00019352,2]
[375214768,1753588241348,-421.21788164,0.00019432,2]
[375214770,1753588241357,-1684.87152657,0.00019432,2]
[375214772,1753588241367,-3787.16997384,0.00019432,2]
[375214774,1753588241378,-460.0,0.00019452,2]
[375214776,1753588241387,-460.0,0.00019452,2]
[375214778,1753588241397,-193.6630861,0.00019452,2]
[375214780,1753588241406,-460.0,0.00019452,2]
[375214782,1753588241416,-460.0,0.00019452,2]
[375214784,1753588241425,-326.55235253,0.00019452,2]
[375214786,1753588241434,-460.0,0.00019452,2]
[375214788,1753588241445,-460.0,0.00019452,2]
[375214790,1753588241454,-460.0,0.00019452,2]
[375214792,1753588241463,-460.0,0.00019452,2]
[375214794,1753588241473,-460.0,0.00019452,2]
[375214796,1753588241482,-475.13971817,0.00019452,2]
[375214798,1753588241492,-1595.96,0.00019452,2]
[375214800,1753588241503,-460.0,0.00019452,2]
[375214802,1753588241512,-460.0,0.00019452,2]
[375214804,1753588241522,-460.0,0.00019452,2]
[375214806,1753588241531,-460.0,0.00019452,2]
[375214808,1753588241540,-460.0,0.00019452,2]
[375214810,1753588241549,-460.0,0.00019452,2]
[375214812,1753588241560,-460.0,0.00019452,2]
[375214814,1753588241570,-470.04918813,0.00019452,2]
[375214816,1753588241580,-460.0,0.00019452,2]
[375214818,1753588241589,-2116.28,0.00019452,2]
[375214820,1753588241599,-575.22,0.00019452,2]
[375214822,1753588241607,-460.0,0.00019452,2]
[375214824,1753588241619,-460.0,0.00019452,2]
[375214826,1753588241628,-697.74,0.00019452,2]
[375214828,1753588241638,-460.0,0.00019452,2]
[375214830,1753588241648,-460.0,0.00019452,2]
[375214832,1753588241657,-460.0,0.00019452,2]
[375214834,1753588241666,-460.0,0.00019452,2]
[375214836,1753588241676,-461.98804429,0.00019452,2]
[375214838,1753588241686,-460.0,0.00019452,2]
[375214840,1753588241696,-460.0,0.00019452,2]
[375214842,1753588241712,-460.0,0.00019452,2]
[375214844,1753588241722,-460.0,0.00019452,2]
[375214846,1753588241732,-460.0,0.00019452,2]
[375214848,1753588241741,-645.61,0.00019452,2]
[375214850,1753588241752,-460.0,0.00019452,2]
[375214852,1753588241761,-460.0,0.00019452,2]
[375214854,1753588241770,-460.0,0.00019452,2]
[375214856,1753588241780,-460.0,0.00019452,2]
[375214858,1753588241789,-1013.8,0.00019452,2]
[375214860,1753588241798,-460.0,0.00019452,2]
[375214862,1753588241807,-460.0,0.00019452,2]
[375214864,1753588241817,-460.0,0.00019452,2]
[375214866,1753588241826,-460.0,0.00019452,2]
[375214868,1753588241835,-460.0,0.00019452,2]
[375214870,1753588241844,-465.64178015,0.00019452,2]
[375214872,1753588241854,-2527.68,0.00019452,2]
[375214874,1753588241863,-460.0,0.00019452,2]
[375214876,1753588241872,-460.0,0.00019452,2]
[375214878,1753588241884,-460.0,0.00019452,2]
[375214880,1753588241893,-460.0,0.00019452,2]
[375214882,1753588241903,-882.45,0.00019452,2]
[375214884,1753588241912,-586.28,0.00019452,2]
[375214886,1753588241921,-736.12,0.00019452,2]
[375214888,1753588241930,-460.0,0.00019452,2]
[375214890,1753588241939,-473.9642559,0.00019452,2]
[375214892,1753588241948,-493.92,0.00019452,2]
[375214894,1753588241958,-460.0,0.00019452,2]
[375214896,1753588241968,-460.0,0.00019452,2]
[375214898,1753588241977,-460.0,0.00019452,2]
[375214900,1753588241986,-460.0,0.00019452,2]
[375214902,1753588241995,-460.0,0.00019452,2]
[375214904,1753588242005,-460.0,0.00019452,2]
[375214906,1753588242014,-460.0,0.00019452,2]
[375214908,1753588242023,-460.0,0.00019452,2]
[375214910,1753588242032,-460.0,0.00019452,2]
[375214912,1753588242042,-460.0,0.00019452,2]
[375214914,1753588242051,-460.0,0.00019452,2]
[375214916,1753588242061,-460.0,0.00019452,2]
[375214918,1753588242070,-460.0,0.00019452,2]
[375214920,1753588242079,-478.49578773,0.00019452,2]
[375214922,1753588242088,-461.81272494,0.00019452,2]
[375214924,1753588242098,-460.0,0.00019452,2]
[375214926,1753588242107,-460.0,0.00019452,2]
[375214928,1753588242116,-1011.18,0.00019452,2]
[375214930,1753588242125,-218.92015935,0.00019452,2]
[375214932,1753588242135,-460.0,0.00019452,2]
[375214934,1753588242144,-460.0,0.00019452,2]
[375214936,1753588242153,-460.0,0.00019452,2]
[375214938,1753588242162,-460.0,0.00019452,2]
[375214940,1753588242172,-460.0,0.00019452,2]
[375214942,1753588242181,-470.18179991,0.00019452,2]
[375214944,1753588242190,-2157.35,0.00019452,2]
[375214946,1753588242200,-460.0,0.00019452,2]
[375214948,1753588242209,-460.0,0.00019452,2]
[375214950,1753588242219,-2162.05,0.00019452,2]
[375214952,1753588242228,-460.0,0.00019452,2]
[375214954,1753588242238,-460.0,0.00019452,2]
[375214956,1753588242247,-460.0,0.00019452,2]
[375214958,1753588242256,-460.0,0.00019452,2]
[375214960,1753588242266,-472.54,0.00019452,2]
[375214962,1753588242275,-556.03,0.00019452,2]
[375214964,1753588242286,-460.0,0.00019452,2]
[375214966,1753588242297,-460.0,0.00019452,2]
[375214968,1753588242307,-641.88,0.00019452,2]
[375214970,1753588242318,-460.0,0.00019452,2]
[375214972,1753588242328,-580.67,0.00019452,2]
[375214974,1753588242338,-1456.07,0.00019452,2]
[375214976,1753588242348,-460.0,0.00019452,2]
[375214978,1753588242357,-460.0,0.00019452,2]
[375214980,1753588242367,-2844.33,0.00019452,2]
[375214982,1753588242376,-460.0,0.00019452,2]
[375214984,1753588242386,-460.0,0.00019452,2]
[375214986,1753588242396,-783.52,0.00019452,2]
[375214988,1753588242406,-640.75,0.00019452,2]
[375214990,1753588242416,-460.0,0.00019452,2]
[375214992,1753588242425,-693.36,0.00019452,2]
[375214994,1753588242435,-770.33,0.00019452,2]
[375214996,1753588242445,-460.0,0.00019452,2]
[375214998,1753588242455,-1001.08,0.00019452,2]
[375215000,1753588242464,-460.0,0.00019452,2]
[375215002,1753588242473,-460.0,0.00019452,2]
[375215004,1753588242483,-2162.08,0.00019452,2]
[375215006,1753588242493,-679.04,0.00019452,2]
[375215021,1753588242502,-460.0,0.00019452,2]
[375215023,1753588242622,-460.0,0.00019452,2]
[375215025,1753588242632,-906.32,0.00019452,2]
[375215027,1753588242641,-460.0,0.00019452,2]
[375215029,1753588242651,-568.78,0.00019452,2]
[375215031,1753588242661,-543.97097694,0.00019452,2]
[375215033,1753588242671,-460.0,0.00019452,2]
[375215035,1753588242680,-460.0,0.00019452,2]
[375215037,1753588242690,-460.0,0.00019452,2]
[375215039,1753588242699,-460.0,0.00019452,2]
[375215041,1753588242709,-460.0,0.00019452,2]
[375215043,1753588242718,-460.0,0.00019452,2]
[375215045,1753588242728,-460.0,0.00019452,2]
[375215047,1753588242737,-463.01175002,0.00019452,2]
[375215049,1753588242747,-460.0,0.00019452,2]
[375215051,1753588242756,-648.64,0.00019452,2]
[375215053,1753588242766,-460.0,0.00019452,2]
[375215055,1753588242776,-1183.66,0.00019452,2]
[375215057,1753588242786,-460.0,0.00019452,2]
[375215059,1753588242795,-460.0,0.00019452,2]
[375215061,1753588242805,-460.0,0.00019452,2]
[375215063,1753588242814,-460.0,0.00019452,2]
[375215065,1753588242824,-460.0,0.00019452,2]
[375215067,1753588242834,-466.63004975,0.00019452,2]
[375215069,1753588242843,-460.0,0.00019452,2]
[375215071,1753588242853,-463.12933023,0.00019452,2]
[375215073,1753588242863,-4830.13,0.00019452,2]
[375215075,1753588242873,-460.0,0.00019452,2]
[375215077,1753588242886,-460.0,0.00019452,2]
[375215079,1753588242896,-460.0,0.00019452,2]
[375215081,1753588242905,-460.0,0.00019452,2]
[375215083,1753588242915,-465.73346958,0.00019452,2]
[375215085,1753588242924,-967.02,0.00019452,2]
[375215087,1753588242934,-460.0,0.00019452,2]
[375215089,1753588242945,-723.97,0.00019452,2]
[375215091,1753588242954,-487.2,0.00019452,2]
[375215094,1753588242963,-460.0,0.00019452,2]
[375215096,1753588242973,-460.0,0.00019452,2]
[375215098,1753588242982,-460.0,0.00019452,2]
[375215100,1753588242991,-460.0,0.00019452,2]
[375215102,1753588243001,-460.0,0.00019452,2]
[375215104,1753588243010,-4375.62,0.00019452,2]
[375215106,1753588243019,-460.0,0.00019452,2]
[375215108,1753588243028,-460.0,0.00019452,2]
[375215110,1753588243038,-460.0,0.00019452,2]
[375215112,1753588243047,-460.0,0.00019452,2]
[375215114,1753588243055,-460.0,0.00019452,2]
[375215116,1753588243064,-460.0,0.00019452,2]
[375215117,1753588243074,-460.0,0.00019452,2]
[375215120,1753588243084,-460.0,0.00019452,2]
[375215122,1753588243094,-660.74,0.00019452,2]
[375215124,1753588243104,-841.42,0.00019452,2]
[375215126,1753588243113,-460.0,0.00019452,2]
[375215128,1753588243123,-1268.11,0.00019452,2]
[375215130,1753588243132,-460.0,0.00019452,2]
[375215132,1753588243141,-759.47,0.00019452,2]
[375215134,1753588243151,-687.3,0.00019452,2]
[375215136,1753588243160,-510.4,0.00019452,2]
[375215138,1753588243169,-460.0,0.00019452,2]
[375215140,1753588243179,-462.24,0.00019452,2]
[375215142,1753588243188,-265.40365917,0.00019452,2]
[375215144,1753588243199,-460.0,0.00019452,2]
[375215146,1753588243208,-726.48,0.00019452,2]
[375215148,1753588243218,-722.49,0.00019452,2]
[375215150,1753588243227,-460.0,0.00019452,2]
[375215151,1753588243236,-460.0,0.00019452,2]
[375215153,1753588243247,-460.0,0.00019452,2]
[375215155,1753588243256,-589.28,0.00019452,2]
[375215157,1753588243266,-572.71,0.00019452,2]
[375215159,1753588243276,-460.0,0.00019452,2]
[375215162,1753588243286,-460.0,0.00019452,2]
[375215165,1753588243295,-460.0,0.00019452,2]
[375215167,1753588243304,-460.0,0.00019452,2]
[375215169,1753588243314,-460.0,0.00019452,2]
[375215171,1753588243323,-1471.74,0.00019452,2]
[375215172,1753588243332,-460.0,0.00019452,2]
[375215174,1753588243342,-1454.12,0.00019452,2]
[375215177,1753588243351,-707.06,0.00019452,2]
[375215179,1753588243361,-460.0,0.00019452,2]
[375215181,1753588243370,-460.0,0.00019452,2]
[375215182,1753588243380,-460.0,0.00019452,2]
[375215184,1753588243389,-378.9579441,0.00019452,2]
[375215187,1753588243399,-500.0,0.00019473,2]
[375215189,1753588243408,-500.0,0.00019473,2]
[375215191,1753588243418,-500.0,0.00019473,2]
[375215193,1753588243427,-500.0,0.00019473,2]
[375215195,1753588243436,-1000.0,0.00019521,2]
[375215197,1753588243448,-909.95777725,0.00019521,2]
[375215199,1753588243456,-1000.0,0.00019521,2]
[375215201,1753588243466,-150.0,0.00019655,2]
[375215203,1753588243475,-1000.0,0.00019721,2]
[375215205,1753588243485,-1000.0,0.00019721,2]
[375215207,1753588243495,-460.0,0.00019726,2]
[375215209,1753588243506,-460.0,0.00019726,2]
[375215211,1753588243515,-460.0,0.00019726,2]
[375215212,1753588243524,-460.0,0.00019726,2]
[375215214,1753588243533,-460.0,0.00019726,2]
[375215216,1753588243543,-460.0,0.00019726,2]
[375215217,1753588243554,-460.0,0.00019726,2]
[375215219,1753588243563,-1595.96,0.00019726,2]
[375215221,1753588243573,-460.0,0.00019726,2]
[375215223,1753588243582,-460.0,0.00019726,2]
[375215224,1753588243591,-460.0,0.00019726,2]
[375215226,1753588243601,-460.0,0.00019726,2]
[375215228,1753588243611,-460.0,0.00019726,2]
[375215230,1753588243620,-2116.28,0.00019726,2]
[375215231,1753588243629,-575.22,0.00019726,2]
[375215233,1753588243638,-460.0,0.00019726,2]
[375215235,1753588243648,-460.0,0.00019726,2]
[375215236,1753588243657,-697.74,0.00019726,2]
[375215238,1753588243667,-505.49423003,0.00019726,2]
[375215240,1753588243676,-460.0,0.00019726,2]
[375215242,1753588243686,-460.0,0.00019726,2]
[375215244,1753588243696,-469.1267352,0.00019726,2]
[375215245,1753588243705,-460.0,0.00019726,2]
[375215247,1753588243715,-460.0,0.00019726,2]
[375215249,1753588243724,-460.0,0.00019726,2]
[375215251,1753588243733,-645.61,0.00019726,2]
[375215252,1753588243743,-460.0,0.00019726,2]
[375215254,1753588243753,-460.0,0.00019726,2]
[375215256,1753588243763,-460.0,0.00019726,2]
[375215257,1753588243773,-460.0,0.00019726,2]
[375215259,1753588243783,-1013.8,0.00019726,2]
[375215261,1753588243793,-500.52702049,0.00019726,2]
[375215264,1753588243802,-460.0,0.00019726,2]
[375215266,1753588243811,-460.0,0.00019726,2]
[375215269,1753588243821,-460.0,0.00019726,2]
[375215272,1753588243830,-460.0,0.00019726,2]
[375215274,1753588243841,-2527.68,0.00019726,2]
[375215275,1753588243850,-460.0,0.00019726,2]
[375215277,1753588243860,-460.0,0.00019726,2]
[375215279,1753588243869,-460.0,0.00019726,2]
[375215281,1753588243881,-882.45,0.00019726,2]
[375215282,1753588243892,-586.28,0.00019726,2]
[375215284,1753588243901,-736.12,0.00019726,2]
[375215286,1753588243911,-460.0,0.00019726,2]
[375215288,1753588243920,-493.92,0.00019726,2]
[375215289,1753588243931,-460.0,0.00019726,2]
[375215291,1753588243940,-460.0,0.00019726,2]
[375215293,1753588243949,-465.49613137,0.00019726,2]
[375215295,1753588243959,-231.93843466,0.00019726,2]
[375215297,1753588243974,-460.0,0.00019726,2]
[375215299,1753588243984,-460.0,0.00019726,2]
[375215300,1753588243994,-460.0,0.00019726,2]
[375215302,1753588244003,-460.0,0.00019726,2]
[375215304,1753588244012,-460.0,0.00019726,2]
[375215305,1753588244021,-460.0,0.00019726,2]
[375215307,1753588244031,-460.0,0.00019726,2]
[375215309,1753588244040,-460.0,0.00019726,2]
[375215311,1753588244050,-460.0,0.00019726,2]
[375215313,1753588244059,-460.0,0.00019726,2]
[375215314,1753588244068,-460.0,0.00019726,2]
[375215316,1753588244078,-1011.18,0.00019726,2]
[375215318,1753588244087,-460.0,0.00019726,2]
[375215320,1753588244097,-460.0,0.00019726,2]
[375215322,1753588244107,-460.0,0.00019726,2]
[375215323,1753588244116,-460.0,0.00019726,2]
[375215325,1753588244125,-460.0,0.00019726,2]
[375215327,1753588244134,-2157.35,0.00019726,2]
[375215329,1753588244144,-460.0,0.00019726,2]
[375215331,1753588244153,-2162.05,0.00019726,2]
[375215333,1753588244163,-522.97259715,0.00019726,2]
[375215334,1753588244172,-460.0,0.00019726,2]
[375215336,1753588244182,-163.5646816,0.00019726,2]
[375215338,1753588244192,-472.54,0.00019726,2]
[375215340,1753588244202,-556.03,0.00019726,2]
[375215342,1753588244215,-460.0,0.00019726,2]
[375215343,1753588244229,-460.0,0.00019726,2]
[375215345,1753588244239,-641.88,0.00019726,2]
[375215347,1753588244248,-466.25805262,0.00019726,2]
[375215349,1753588244258,-580.67,0.00019726,2]
[375215351,1753588244267,-1456.07,0.00019726,2]
[375215353,1753588244277,-433.14357893,0.00019726,2]
[375215354,1753588244286,-460.0,0.00019726,2]
[375215356,1753588244295,-2844.33,0.00019726,2]
[375215357,1753588244305,-460.0,0.00019726,2]
[375215359,1753588244314,-460.0,0.00019726,2]
[375215361,1753588244323,-783.52,0.00019726,2]
[375215363,1753588244332,-640.75,0.00019726,2]
[375215365,1753588244342,-693.36,0.00019726,2]
[375215366,1753588244351,-770.33,0.00019726,2]
[375215368,1753588244360,-1001.08,0.00019726,2]
[375215370,1753588244370,-460.0,0.00019726,2]
[375215372,1753588244379,-460.0,0.00019726,2]
[375215374,1753588244388,-2162.08,0.00019726,2]
[375215375,1753588244398,-679.04,0.00019726,2]
[375215377,1753588244407,-460.0,0.00019726,2]
[375215379,1753588244417,-460.0,0.00019726,2]
[375215381,1753588244426,-906.32,0.00019726,2]
[375215383,1753588244436,-460.0,0.00019726,2]
[375215385,1753588244447,-568.78,0.00019726,2]
[375215386,1753588244456,-460.0,0.00019726,2]
[375215388,1753588244466,-460.0,0.00019726,2]
[375215390,1753588244476,-460.0,0.00019726,2]
[375215392,1753588244485,-460.0,0.00019726,2]
[375215394,1753588244495,-460.0,0.00019726,2]
[375215396,1753588244504,-460.0,0.00019726,2]
[375215397,1753588244513,-460.0,0.00019726,2]
[375215399,1753588244522,-648.64,0.00019726,2]
[375215401,1753588244531,-460.0,0.00019726,2]
[375215405,1753588244567,-1183.66,0.00019726,2]
[375215407,1753588244576,-460.0,0.00019726,2]
[375215409,1753588244585,-303.55032892,0.00019726,2]
[375215410,1753588244595,-460.0,0.00019726,2]
[375215412,1753588244604,-476.40567855,0.00019726,2]
[375215414,1753588244614,-460.0,0.00019726,2]
[375215416,1753588244624,-460.0,0.00019726,2]
[375215418,1753588244633,-4830.13,0.00019726,2]
[375215419,1753588244642,-460.0,0.00019726,2]
[375215421,1753588244651,-460.0,0.00019726,2]
[375215423,1753588244661,-282.77290652,0.00019726,2]
[375215425,1753588244670,-460.0,0.00019726,2]
[375215427,1753588244679,-967.02,0.00019726,2]
[375215429,1753588244691,-460.0,0.00019726,2]
[375215430,1753588244702,-723.97,0.00019726,2]
[375215432,1753588244712,-487.2,0.00019726,2]
[375215434,1753588244721,-460.0,0.00019726,2]
[375215436,1753588244731,-460.0,0.00019726,2]
[375215438,1753588244740,-460.0,0.00019726,2]
[375215440,1753588244749,-460.0,0.00019726,2]
[375215441,1753588244758,-460.0,0.00019726,2]
[375215443,1753588244767,-4375.62,0.00019726,2]
[375215445,1753588244777,-460.0,0.00019726,2]
[375215447,1753588244787,-460.0,0.00019726,2]
[375215449,1753588244796,-460.0,0.00019726,2]
[375215450,1753588244806,-460.0,0.00019726,2]
[375215452,1753588244815,-460.0,0.00019726,2]
[375215454,1753588244826,-460.0,0.00019726,2]
[375215456,1753588244835,-460.0,0.00019726,2]
[375215458,1753588244846,-460.0,0.00019726,2]
[375215460,1753588244855,-660.74,0.00019726,2]
[375215461,1753588244864,-841.42,0.00019726,2]
[375215463,1753588244874,-460.0,0.00019726,2]
[375215465,1753588244886,-1268.11,0.00019726,2]
[375215467,1753588244896,-476.52832246,0.00019726,2]
[375215469,1753588244906,-759.47,0.00019726,2]
[375215471,1753588244915,-687.3,0.00019726,2]
[375215472,1753588244928,-510.4,0.00019726,2]